lending/lending_fUSD_20250121
["ID","MTS","AMOUNT","RATE_DAILY","PERIOD"]
[349822733,1737451865191,-500.0,0.00021095,2]
[349822734,1737451865201,-500.0,0.00021095,2]
[349822735,1737451865210,-648.42,0.00021095,2]
[349822736,1737451865219,-406.49328572,0.00021095,2]
[349822737,1737451865229,-1458.78,0.00021095,2]
[349822738,1737451865238,-500.0,0.00021095,2]
[349822739,1737451865248,-500.0,0.00021095,2]
[349822740,1737451865257,-256.41441985,0.00021095,2]
[349822741,1737451865272,-500.0,0.00021095,2]
[349822742,1737451865282,-500.0,0.00021095,2]
[349822743,1737451865291,-500.0,0.00021095,2]
[349822744,1737451865301,-500.0,0.00021095,2]
[349822745,1737451865311,-500.0,0.00021095,2]
[349822746,1737451865321,-500.0,0.00021095,2]
[349822747,1737451865330,-500.0,0.00021095,2]
[349822748,1737451865339,-500.0,0.00021095,2]
[349822749,1737451865349,-500.0,0.00021095,2]
[349822750,1737451865359,-500.0,0.00021095,2]
[349822751,1737451865369,-500.0,0.00021095,2]
[349822752,1737451865382,-500.0,0.00021095,2]
[349822753,1737451865479,-500.0,0.00021095,2]
[349822754,1737451865489,-500.0,0.00021095,2]
[349822755,1737451865499,-500.0,0.00021095,2]
[349822756,1737451865511,-500.0,0.00021095,2]
[349822757,1737451865521,-500.0,0.00021095,2]
[349822758,1737451865532,-568.81,0.00021095,2]
[349822759,1737451865542,-500.0,0.00021095,2]
[349822760,1737451865552,-500.0,0.00021095,2]
[349822761,1737451865562,-500.0,0.00021095,2]
[349822762,1737451865572,-1180.87,0.00021095,2]
[349822763,1737451865582,-500.0,0.00021095,2]
[349822764,1737451865592,-500.0,0.00021095,2]
[349822765,1737451865602,-212.76368305,0.00021095,2]
[349822766,1737451865612,-1042.35,0.00021095,2]
[349822767,1737451865623,-500.0,0.00021095,2]
[349822768,1737451865633,-500.0,0.00021095,2]
[349822769,1737451865644,-1431.03,0.00021095,2]
[349822770,1737451865654,-1442.47,0.00021095,2]
[349822771,1737451865665,-1618.9,0.00021095,2]
[349822772,1737451865675,-784.62,0.00021095,2]
[349822773,1737451865685,-1181.46,0.00021095,2]
[349822774,1737451865695,-700.2,0.00021095,2]
[349822775,1737451865706,-500.0,0.00021095,2]
[349822776,1737451865716,-864.13,0.00021095,2]
[349822777,1737451865727,-1046.8,0.00021095,2]
[349822778,1737451865738,-514.38590661,0.00021095,2]
[349822779,1737451865750,-2225.67,0.00021095,2]
[349822780,1737451865765,-997.49,0.00021095,2]
[349822781,1737451865777,-500.0,0.00021095,2]
[349822782,1737451865788,-643.01,0.00021095,2]
[349822783,1737451865799,-500.0,0.00021095,2]
[349822784,1737451865810,-1363.79,0.00021095,2]
[349822785,1737451865821,-285.56137911,0.00021095,2]
[349822786,1737451865830,-968.6,0.00021095,2]
[349822787,1737451865841,-731.54,0.00021095,2]
[349822788,1737451865852,-671.55,0.00021095,2]
[349822789,1737451865862,-500.0,0.00021095,2]
[349822790,1737451865872,-1512.89,0.00021095,2]
[349822791,1737451865883,-1824.0,0.00021095,2]
[349822792,1737451865893,-500.0,0.00021095,2]
[349822793,1737451865903,-523.67398972,0.00021095,2]
[349822794,1737451865915,-720.36,0.00021095,2]
[349822795,1737451865925,-500.0,0.00021095,2]
[349822796,1737451865935,-604.2067381,0.00021095,2]
[349822797,1737451865945,-1598.88,0.00021095,2]
[349822798,1737451865955,-300.0,0.00021095,2]
[349822799,1737451865965,-1625.7,0.00021095,2]
[349822800,1737451865975,-500.0,0.00021095,2]
[349822801,1737451865985,-11076.26,0.00021095,2]
[349822802,1737451865995,-714.81,0.00021095,2]
[349822803,1737451866005,-83811.15108223,0.00021129,2]
[349822804,1737451866018,-405.71652632,0.00021133,2]
[349822805,1737451866028,-456.7,0.00021178,2]
[349822806,1737451866039,-150.0,0.00021178,2]
[349822807,1737451866049,-150.0,0.00021178,2]
[349822808,1737451866058,-150.0,0.00021178,2]
[349822809,1737451866068,-242.0,0.00021178,2]
[349822810,1737451866078,-981.79,0.00021178,2]
[349822811,1737451866090,-150.0,0.00021178,2]
[349822812,1737451866100,-437.71,0.00021178,2]
[349822813,1737451866109,-150.0,0.00021178,2]
[349822814,1737451866120,-150.0,0.00021178,2]
[349822815,1737451866130,-150.0,0.00021178,2]
[349822816,1737451866140,-150.0,0.00021178,2]
[349822817,1737451866158,-981.79,0.00021178,2]
[349822818,1737451866176,-150.0,0.00021178,2]
[349822819,1737451866195,-400.09,0.00021178,2]
[349822820,1737451866213,-150.0,0.00021178,2]
[349822821,1737451866231,-150.0,0.00021178,2]
[349822822,1737451866249,-150.0,0.00021178,2]
[349822823,1737451866270,-981.79,0.00021178,2]
[349822824,1737451866287,-150.0,0.00021178,2]
[349822825,1737451866306,-437.71,0.00021178,2]
[349822826,1737451866323,-437.71,0.00021178,2]
[349822827,1737451866341,-150.0,0.00021178,2]
[349822828,1737451866355,-150.0,0.00021178,2]
[349822829,1737451866375,-150.0,0.00021178,2]
[349822830,1737451866392,-981.79,0.00021178,2]
[349822831,1737451866411,-150.0,0.00021178,2]
[349822832,1737451866425,-150.0,0.00021178,2]
[349822833,1737451866442,-437.71,0.00021178,2]
[349822834,1737451866458,-150.0,0.00021178,2]
[349822835,1737451866474,-981.79,0.00021178,2]
[349822836,1737451866489,-150.0,0.00021178,2]
[349822837,1737451866505,-150.0,0.00021178,2]
[349822838,1737451866522,-150.0,0.00021178,2]
[349822839,1737451866537,-981.79,0.00021178,2]
[349822840,1737451866553,-191.27,0.00021178,2]
[349822841,1737451866568,-279.14,0.00021178,2]
[349822842,1737451866583,-874.3,0.00021178,2]
[349822843,1737451866598,-150.0,0.00021178,2]
[349822844,1737451866614,-981.79,0.00021178,2]
[349822845,1737451866629,-150.0,0.00021178,2]
[349822846,1737451866644,-150.0,0.00021178,2]
[349822847,1737451866660,-437.71,0.00021178,2]
[349822848,1737451866676,-981.79,0.00021178,2]
[349822849,1737451866692,-150.0,0.00021178,2]
[349822850,1737451866708,-389.79,0.00021178,2]
[349822851,1737451866724,-981.79,0.00021178,2]
[349822852,1737451866740,-150.0,0.00021178,2]
[349822853,1737451866755,-437.71,0.00021178,2]
[349822854,1737451866775,-150.0,0.00021178,2]
[349822855,1737451866790,-150.0,0.00021178,2]
[349822856,1737451866806,-150.0,0.00021178,2]
[349822857,1737451866822,-150.0,0.00021178,2]
[349822858,1737451866840,-981.79,0.00021178,2]
[349822859,1737451866856,-437.71,0.00021178,2]
[349822860,1737451866872,-150.0,0.00021178,2]
[349822861,1737451866887,-150.0,0.00021178,2]
[349822862,1737451866903,-150.0,0.00021178,2]
[349822863,1737451866922,-389.92,0.00021178,2]
[349822864,1737451866938,-150.0,0.00021178,2]
[349822865,1737451866953,-150.0,0.00021178,2]
[349822866,1737451866970,-150.0,0.00021178,2]
[349822867,1737451866986,-150.0,0.00021178,2]
[349822868,1737451867002,-248.86,0.00021178,2]
[349822869,1737451867022,-1679.69,0.00021178,2]
[349822870,1737451867039,-1982.04,0.00021178,2]
[349822871,1737451867055,-150.0,0.00021178,2]
[349822872,1737451867078,-150.0,0.00021178,2]
[349822873,1737451867097,-150.0,0.00021178,2]
[349822874,1737451867115,-437.71,0.00021178,2]
[349822875,1737451867131,-437.71,0.00021178,2]
[349822876,1737451867148,-150.0,0.00021178,2]
[349822877,1737451867164,-981.79,0.00021178,2]
[349822878,1737451867180,-150.0,0.00021178,2]
[349822879,1737451867198,-150.0,0.00021178,2]
[349822880,1737451867214,-981.79,0.00021178,2]
[349822881,1737451867231,-437.71,0.00021178,2]
[349822882,1737451867377,-981.79,0.00021178,2]
[349822883,1737451867396,-150.0,0.00021178,2]
[349822884,1737451867407,-150.0,0.00021178,2]
[349822885,1737451867416,-160.18,0.00021178,2]
[349822886,1737451867427,-150.0,0.00021178,2]
[349822887,1737451867436,-150.0,0.00021178,2]
[349822888,1737451867446,-150.0,0.00021178,2]
[349822889,1737451867456,-150.0,0.00021178,2]
[349822890,1737451867466,-150.0,0.00021178,2]
[349822891,1737451867476,-150.0,0.00021178,2]
[349822892,1737451867486,-150.0,0.00021178,2]
[349822893,1737451867495,-150.0,0.00021178,2]
[349822894,1737451867505,-1562.0,0.000212,2]
[349822895,1737451867515,-1693.51306782,0.000213,2]
[349822896,1737451867525,-32601.33711206,0.000213,2]
[349822897,1737451867540,-625.77,0.00021314,30]
[349822898,1737451867549,-244.10228757,0.00021324,2]
[349822899,1737451867558,-500.0,0.00021368,2]
[349822900,1737451867568,-500.0,0.00021368,2]
[349822901,1737451867578,-647.89,0.00021368,2]
[349822902,1737451867587,-893.13,0.00021368,2]
[349822903,1737451867596,-500.0,0.00021368,2]
[349822904,1737451867606,-500.0,0.00021368,2]
[349822905,1737451867615,-500.0,0.00021368,2]
[349822906,1737451867625,-500.0,0.00021368,2]
[349822907,1737451867634,-500.0,0.00021368,2]
[349822908,1737451867644,-500.0,0.00021368,2]
[349822909,1737451867653,-515.68798349,0.00021368,2]
[349822910,1737451867662,-500.0,0.00021368,2]
[349822911,1737451867672,-216.62811375,0.00021368,2]
[349822912,1737451867681,-500.0,0.00021368,2]
[349822913,1737451867691,-500.0,0.00021368,2]
[349822914,1737451867700,-500.0,0.00021368,2]
[349822915,1737451867710,-500.0,0.00021368,2]
[349822916,1737451867719,-500.0,0.00021368,2]
[349822917,1737451867728,-500.0,0.00021368,2]
[349822918,1737451867738,-500.0,0.00021368,2]
[349822919,1737451867748,-500.0,0.00021368,2]
[349822920,1737451867757,-500.0,0.00021368,2]
[349822921,1737451867768,-500.0,0.00021368,2]
[349822922,1737451867777,-500.0,0.00021368,2]
[349822923,1737451867786,-500.0,0.00021368,2]
[349822924,1737451867795,-500.0,0.00021368,2]
[349822925,1737451867805,-500.0,0.00021368,2]
[349822926,1737451867814,-500.0,0.00021368,2]
[349822927,1737451867823,-550.69,0.00021368,2]
[349822928,1737451867833,-525.13,0.00021368,2]
[349822929,1737451867843,-521.1,0.00021368,2]
[349822930,1737451867853,-797.02,0.00021368,2]
[349822931,1737451867862,-160.523018,0.00021368,2]
[349822932,1737451867872,-556.55,0.00021368,2]
[349822933,1737451867882,-1866.84,0.00021368,2]
[349822934,1737451867891,-2519.65,0.00021368,2]
[349822935,1737451867901,-548.24,0.00021368,2]
[349822936,1737451867911,-777.32,0.00021368,2]
[349822937,1737451867920,-500.0,0.00021368,2]
[349822938,1737451867930,-1125.78,0.00021368,2]
[349822939,1737451867940,-155.553152,0.00021368,2]
[349822940,1737451867950,-500.0,0.00021368,2]
[349822941,1737451867960,-788.4,0.00021368,2]
[349822942,1737451867970,-1354.69,0.00021368,2]
[349822943,1737451867979,-500.0,0.00021368,2]
[349822944,1737451867989,-262.49295127,0.00021368,2]
[349822945,1737451867998,-500.0,0.00021368,2]
[349822946,1737451868008,-500.0,0.00021368,2]
[349822947,1737451868022,-844.31,0.00021368,2]
[349822948,1737451868032,-208.822323,0.00021368,2]
[349822949,1737451868043,-1391.48,0.00021368,2]
[349822950,1737451868054,-1002.55,0.00021368,2]
[349822951,1737451868065,-500.0,0.00021368,2]
[349822952,1737451868076,-500.0,0.00021368,2]
[349822953,1737451868087,-640.71,0.00021368,2]
[349822954,1737451868097,-151.0,0.00021368,2]
[349822955,1737451868108,-500.0,0.00021368,2]
[349822956,1737451868119,-500.0,0.00021368,2]
[349822957,1737451868130,-151.0,0.00021368,2]
[349822958,1737451868141,-500.0,0.00021368,2]
[349822959,1737451868153,-731.04,0.00021368,2]
[349822960,1737451868163,-154.420174,0.00021368,2]
[349822961,1737451868173,-500.0,0.00021368,2]
[349822962,1737451868183,-500.0,0.00021368,2]
[349822963,1737451868193,-500.0,0.00021368,2]
[349822964,1737451868202,-714.65,0.00021368,2]
[349822965,1737451868212,-500.0,0.00021368,2]
[349822966,1737451868221,-505.72,0.00021368,2]
[349822967,1737451868230,-1332.26,0.00021368,2]
[349822968,1737451868240,-500.0,0.00021368,2]
[349822969,1737451868249,-1133.86,0.00021368,2]
[349822970,1737451868259,-1200.229589,0.00021368,2]
[349822971,1737451868271,-214.025651,0.00021368,2]
[349822972,1737451868281,-1200.229589,0.00021368,2]
[349822973,1737451868291,-623.68,0.00021368,2]
[349822974,1737451868300,-214.025651,0.00021368,2]
[349822975,1737451868309,-1398.4,0.00021368,2]
[349822976,1737451868319,-151.590323,0.00021368,2]
[349822977,1737451868329,-500.0,0.00021368,2]
[349822978,1737451868339,-1012.63,0.00021368,2]
[349822979,1737451868349,-500.0,0.00021368,2]
[349822980,1737451868359,-1816.63,0.00021368,2]
[349822981,1737451868369,-544.58715145,0.00021368,2]
[349822982,1737451868382,-2242.61,0.00021368,2]
[349822983,1737451868400,-537.32,0.00021368,2]
[349822984,1737451868411,-500.0,0.00021368,2]
[349822985,1737451868422,-500.0,0.00021368,2]
[349822986,1737451868432,-598.63,0.00021368,2]
[349822987,1737451868442,-819.36,0.00021368,2]
[349822988,1737451868454,-172.57,0.00021368,2]
[349822989,1737451868464,-878.52,0.00021368,2]
[349822990,1737451868475,-500.0,0.00021368,2]
[349822991,1737451868485,-500.0,0.00021368,2]
[349822992,1737451868496,-500.0,0.00021368,2]
[349822993,1737451868506,-865.06,0.00021368,2]
[349822994,1737451868517,-2333.67,0.00021368,2]
[349822995,1737451868527,-1054.66,0.00021368,2]
[349822996,1737451868536,-639.03,0.00021368,2]
[349822997,1737451868546,-1659.51,0.00021368,2]
[349822998,1737451868556,-500.0,0.00021368,2]
[349822999,1737451868566,-788.63,0.00021368,2]
[349823000,1737451868576,-500.0,0.00021368,2]
[349823001,1737451868593,-2681.81,0.00021368,2]
[349823002,1737451868604,-500.0,0.00021368,2]
[349823003,1737451868613,-792.79,0.00021368,2]
[349823004,1737451868622,-500.0,0.00021368,2]
[349823005,1737451868634,-607.89,0.00021368,2]
[349823006,1737451868644,-809.0,0.00021368,2]
[349823007,1737451868654,-630.14,0.00021368,2]
[349823008,1737451868663,-500.0,0.00021368,2]
[349823009,1737451868673,-1650.93,0.00021368,2]
[349823010,1737451868683,-1908.06,0.00021368,2]
[349823011,1737451868692,-1008.63,0.00021368,2]
[349823012,1737451868701,-183.36478677,0.00021368,2]
[349823013,1737451868711,-609.84,0.00021368,2]
[349823014,1737451868721,-2139.5,0.00021368,2]
[349823015,1737451868731,-1503.49,0.00021368,2]
[349823016,1737451868740,-1375.23,0.00021368,2]
[349823017,1737451868749,-500.0,0.00021368,2]
[349823018,1737451868758,-500.0,0.00021368,2]
[349823019,1737451868768,-900.29,0.00021368,2]
[349823020,1737451868777,-500.0,0.00021369,2]
[349823021,1737451868787,-469.63140513,0.00021369,2]
[349823022,1737451868796,-500.0,0.00021369,2]
[349823023,1737451868807,-500.0,0.00021369,2]
[349823024,1737451868818,-500.0,0.00021369,2]
[349823025,1737451868828,-1366.89,0.00021369,2]
[349823026,1737451868837,-500.0,0.00021369,2]
[349823027,1737451868847,-643.51,0.00021369,2]
[349823028,1737451868856,-500.0,0.00021369,2]
[349823029,1737451868866,-500.0,0.00021369,2]
[349823030,1737451868875,-500.0,0.00021369,2]
[349823031,1737451868884,-500.0,0.00021369,2]
[349823032,1737451868899,-500.0,0.00021369,2]
[349823033,1737451868908,-687.44,0.00021369,2]
[349823034,1737451868918,-500.0,0.00021369,2]
[349823035,1737451868927,-500.0,0.00021369,2]
[349823036,1737451868936,-565.39,0.00021369,2]
[349823037,1737451868946,-500.0,0.00021369,2]
[349823038,1737451868956,-500.0,0.00021369,2]
[349823039,1737451868968,-984.73,0.00021369,2]
[349823040,1737451868978,-500.0,0.00021369,2]
[349823041,1737451868987,-703.52,0.00021369,2]
[349823042,1737451868997,-500.0,0.00021369,2]
[349823043,1737451869006,-500.0,0.00021369,2]
[349823044,1737451869016,-520.25,0.00021369,2]
[349823045,1737451869025,-500.0,0.00021369,2]
[349823046,1737451869035,-648.42,0.00021369,2]
[349823047,1737451869046,-1458.78,0.00021369,2]
[349823048,1737451869056,-500.0,0.00021369,2]
[349823049,1737451869066,-500.0,0.00021369,2]
[349823050,1737451869075,-500.0,0.00021369,2]
[349823051,1737451869085,-500.0,0.00021369,2]
[349823052,1737451869094,-500.0,0.00021369,2]
[349823053,1737451869104,-500.0,0.00021369,2]
[349823054,1737451869114,-515.57979137,0.00021369,2]
[349823055,1737451869123,-500.0,0.00021369,2]
[349823056,1737451869133,-591.36870278,0.00021369,2]
[349823057,1737451869142,-500.0,0.00021369,2]
[349823058,1737451869152,-500.0,0.00021369,2]
[349823059,1737451869161,-500.0,0.00021369,2]
[349823060,1737451869170,-500.0,0.00021369,2]
[349823061,1737451869179,-500.0,0.00021369,2]
[349823062,1737451869189,-500.0,0.00021369,2]
[349823063,1737451869199,-500.0,0.00021369,2]
[349823064,1737451869211,-500.0,0.00021369,2]
[349823065,1737451869316,-500.0,0.00021369,2]
[349823066,1737451869326,-568.81,0.00021369,2]
[349823067,1737451869335,-500.0,0.00021369,2]
[349823068,1737451869345,-500.0,0.00021369,2]
[349823069,1737451869354,-500.0,0.00021369,2]
[349823070,1737451869363,-1180.87,0.00021369,2]
[349823071,1737451869372,-500.0,0.00021369,2]
[349823072,1737451869382,-1042.35,0.00021369,2]
[349823073,1737451869393,-500.0,0.00021369,2]
[349823074,1737451869403,-500.0,0.00021369,2]
[349823075,1737451869412,-1431.03,0.00021369,2]
[349823076,1737451869423,-1442.47,0.00021369,2]
[349823077,1737451869432,-1618.9,0.00021369,2]
[349823078,1737451869441,-784.62,0.00021369,2]
[349823079,1737451869451,-1181.46,0.00021369,2]
[349823080,1737451869460,-700.2,0.00021369,2]
[349823081,1737451869471,-500.0,0.00021369,2]
[349823082,1737451869481,-864.13,0.00021369,2]
[349823083,1737451869490,-1046.8,0.00021369,2]
[349823084,1737451869499,-2225.67,0.00021369,2]
[349823085,1737451869509,-997.49,0.00021369,2]
[349823086,1737451869521,-500.0,0.00021369,2]
[349823087,1737451869531,-643.01,0.00021369,2]
[349823088,1737451869541,-500.0,0.00021369,2]
[349823089,1737451869550,-1363.79,0.00021369,2]
[349823090,1737451869560,-968.6,0.00021369,2]
[349823091,1737451869569,-731.54,0.00021369,2]
[349823092,1737451869579,-671.55,0.00021369,2]
[349823093,1737451869589,-500.0,0.00021369,2]
[349823094,1737451869598,-1512.89,0.00021369,2]
[349823095,1737451869608,-1824.0,0.00021369,2]
[349823096,1737451869617,-500.0,0.00021369,2]
[349823097,1737451869626,-720.36,0.00021369,2]
[349823098,1737451869635,-500.0,0.00021369,2]
[349823099,1737451869645,-1598.88,0.00021369,2]
[349823100,1737451869655,-300.0,0.00021369,2]
[349823101,1737451869664,-1625.7,0.00021369,2]
[349823102,1737451869674,-500.0,0.00021369,2]
[349823103,1737451869683,-11076.26,0.00021369,2]
[349823104,1737451869693,-714.81,0.00021369,2]
[349823105,1737451869702,-6034.41,0.0002137,2]
[349823106,1737451869712,-8638.43464795,0.000214,2]
[349823107,1737451869721,-3484.07,0.00021411,7]
[349823108,1737451869731,-3484.07,0.00021411,7]
[349823109,1737451869741,-3484.07,0.00021411,7]
[349823110,1737451869750,-3484.07,0.00021411,7]
[349823111,1737451869759,-167.84384316,0.00021426,2]
[349823112,1737451869772,-150.0,0.00021426,2]
[349823113,1737451869782,-152.48,0.00021426,2]
[349823114,1737451869791,-150.0,0.00021426,2]
[349823115,1737451869800,-150.0,0.00021426,2]
[349823116,1737451869809,-983.79,0.00021434,2]
[349823117,1737451869818,-151.09,0.00021452,2]
[349823118,1737451869828,-150.0,0.00021452,2]
[349823119,1737451869838,-150.0,0.00021452,2]
[349823120,1737451869847,-150.0,0.00021452,2]
[349823121,1737451869857,-2110.0,0.000215,2]
[349823122,1737451869867,-405.71652632,0.00021504,2]
[349823123,1737451869878,-250.0,0.00021521,2]
[349823124,1737451869887,-3720.9851643,0.0002156,2]
[349823125,1737451869897,-300.0,0.000216,7]
[349823126,1737451869906,-244.10228757,0.00021612,2]
[349823127,1737451869915,-500.0,0.00021642,2]
[349823128,1737451869925,-500.0,0.00021642,2]
[349823129,1737451869934,-647.89,0.00021642,2]
[349823130,1737451869944,-893.13,0.00021642,2]
[349823131,1737451869953,-500.0,0.00021642,2]
[349823132,1737451869963,-500.0,0.00021642,2]
[349823133,1737451869973,-500.0,0.00021642,2]
[349823134,1737451869984,-174.17,0.00021642,2]
[349823135,1737451869994,-500.0,0.00021642,2]
[349823136,1737451870004,-166.661019,0.00021642,2]
[349823137,1737451870015,-500.0,0.00021642,2]
[349823138,1737451870024,-500.0,0.00021642,2]
[349823139,1737451870034,-500.0,0.00021642,2]
[349823140,1737451870044,-316.17306934,0.00021642,2]
[349823141,1737451870054,-500.0,0.00021642,2]
[349823142,1737451870067,-500.0,0.00021642,2]
[349823143,1737451870078,-437.25369764,0.00021642,2]
[349823144,1737451870087,-500.0,0.00021642,2]
[349823145,1737451870098,-500.0,0.00021642,2]
[349823146,1737451870108,-500.0,0.00021642,2]
[349823147,1737451870119,-500.0,0.00021642,2]
[349823148,1737451870130,-500.0,0.00021642,2]
[349823149,1737451870141,-500.0,0.00021642,2]
[349823150,1737451870151,-500.0,0.00021642,2]
[349823151,1737451870161,-500.0,0.00021642,2]
[349823152,1737451870171,-550.69,0.00021642,2]
[349823153,1737451870180,-525.13,0.00021642,2]
[349823154,1737451870191,-521.1,0.00021642,2]
[349823155,1737451870201,-797.02,0.00021642,2]
[349823156,1737451870210,-556.55,0.00021642,2]
[349823157,1737451870220,-1866.84,0.00021642,2]
[349823158,1737451870229,-2519.65,0.00021642,2]
[349823159,1737451870239,-548.24,0.00021642,2]
[349823160,1737451870250,-777.32,0.00021642,2]
[349823161,1737451870260,-500.0,0.00021642,2]
[349823162,1737451870272,-1125.78,0.00021642,2]
[349823163,1737451870282,-155.553152,0.00021642,2]
[349823164,1737451870292,-500.0,0.00021642,2]
[349823165,1737451870302,-788.4,0.00021642,2]
[349823166,1737451870313,-1354.69,0.00021642,2]
[349823167,1737451870322,-500.0,0.00021642,2]
[349823168,1737451870331,-500.0,0.00021642,2]
[349823169,1737451870340,-500.0,0.00021642,2]
[349823170,1737451870349,-844.31,0.00021642,2]
[349823171,1737451870359,-208.822323,0.00021642,2]
[349823172,1737451870369,-1391.48,0.00021642,2]
[349823173,1737451870381,-1002.55,0.00021642,2]
[349823174,1737451870391,-500.0,0.00021642,2]
[349823175,1737451870400,-500.0,0.00021642,2]
[349823176,1737451870409,-640.71,0.00021642,2]
[349823177,1737451870418,-500.0,0.00021642,2]
[349823178,1737451870428,-500.0,0.00021642,2]
[349823179,1737451870437,-500.0,0.00021642,2]
[349823180,1737451870446,-731.04,0.00021642,2]
[349823181,1737451870456,-500.0,0.00021642,2]
[349823182,1737451870466,-500.0,0.00021642,2]
[349823183,1737451870476,-384.91,0.00021642,2]
[349823184,1737451870486,-714.65,0.00021642,2]
[349823185,1737451870495,-504.8248559,0.00021642,2]
[349823186,1737451870505,-505.72,0.00021642,2]
[349823187,1737451870516,-1332.26,0.00021642,2]
[349823188,1737451870525,-500.0,0.00021642,2]
[349823189,1737451870535,-1133.86,0.00021642,2]
[349823190,1737451870544,-623.68,0.00021642,2]
[349823191,1737451870553,-1398.4,0.00021642,2]
[349823192,1737451870563,-500.0,0.00021642,2]
[349823193,1737451870572,-1012.63,0.00021642,2]
[349823194,1737451870581,-500.0,0.00021642,2]
[349823195,1737451870591,-1816.63,0.00021642,2]
[349823196,1737451870600,-2242.61,0.00021642,2]
[349823197,1737451870610,-537.32,0.00021642,2]
[349823198,1737451870619,-500.0,0.00021642,2]
[349823199,1737451870628,-598.63,0.00021642,2]
[349823200,1737451870638,-819.36,0.00021642,2]
[349823201,1737451870647,-878.52,0.00021642,2]
[349823202,1737451870657,-500.0,0.00021642,2]
[349823203,1737451870666,-500.0,0.00021642,2]
[349823204,1737451870676,-500.0,0.00021642,2]
[349823205,1737451870686,-865.06,0.00021642,2]
[349823206,1737451870695,-2333.67,0.00021642,2]
[349823207,1737451870705,-1054.66,0.00021642,2]
[349823208,1737451870715,-639.03,0.00021642,2]
[349823209,1737451870723,-1659.51,0.00021642,2]
[349823210,1737451870732,-500.0,0.00021642,2]
[349823211,1737451870741,-788.63,0.00021642,2]
[349823212,1737451870751,-529.70049502,0.00021642,2]
[349823213,1737451870761,-2681.81,0.00021642,2]
[349823214,1737451870775,-500.0,0.00021642,2]
[349823215,1737451870785,-792.79,0.00021642,2]
[349823216,1737451870795,-500.0,0.00021642,2]
[349823217,1737451870805,-607.89,0.00021642,2]
[349823218,1737451870815,-809.0,0.00021642,2]
[349823219,1737451870825,-630.14,0.00021642,2]
[349823220,1737451870835,-500.0,0.00021642,2]
[349823221,1737451870845,-1650.93,0.00021642,2]
[349823222,1737451870855,-1908.06,0.00021642,2]
[349823223,1737451870865,-1008.63,0.00021642,2]
[349823224,1737451870874,-2139.5,0.00021642,2]
[349823225,1737451870884,-609.84,0.00021642,2]
[349823226,1737451870893,-1503.49,0.00021642,2]
[349823227,1737451870903,-1375.23,0.00021642,2]
[349823228,1737451870912,-500.0,0.00021642,2]
[349823229,1737451870922,-500.0,0.00021642,2]
[349823230,1737451870932,-900.29,0.00021642,2]
[349823231,1737451870942,-500.0,0.00021643,2]
[349823232,1737451870951,-500.0,0.00021643,2]